Cogmind - Beta 16.1 @@@ ROGUE MODE // 2026.04.12 @ 22:17:55 Player: Lazz Result: Self-destructed Performance ------------- Evolutions (3) 1500 Regions Visited (6) 1200 Robots Destroyed (23) 115 Value Destroyed (421) 421 Prototype IDs (1) 20 Alien Tech Used (0) 0 Bonus (-27) -27 TOTAL SCORE: 3229 Bonus ------- Friendly Fire -27 Cogmind --------- Core Integrity 630/700 Matter 1/300 Energy 87/100 System Corruption 27% Temperature Cool (0) Movement Rolling (115) Ox1 Location -7/Factory Parts ------- > --- POWER (2) -------- (None) > --- PROPULSION (3) --- Improved Carbon-fiber Leg Armored Huge Wheel > --- UTILITY (5) ------ Large Storage Unit Advanced Visual Processing Unit Improved Sensor Array Improved Signal Interpreter Improved Salvage Targeting Computer > --- WEAPON (3) ------- Plasma Cannon Plasma Cannon Heavy Missile Launcher > --- INVENTORY (15) --- Makeshift Leg Armored Huge Wheel Coolant Injector Coolant Injector Improved Sensor Array Arc Projector Heavy Laser Plasma Cannon Flak Gun Improved Datajack Improved Datajack Chainsword Peak State ------------ > --- POWER ------------ Light Ion Engine Improved Fusion Compressor > --- PROPULSION ------- Improved Carbon-fiber Leg Improved Carbon-fiber Leg Improved Carbon-fiber Leg > --- UTILITY ---------- Large Storage Unit Structural Scanner Advanced Visual Processing Unit Seismic Detector Improved Salvage Targeting Computer > --- WEAPON ----------- Gatling Laser Gatling Laser Gatling Laser > --- INVENTORY -------- Improved Carbon-fiber Leg Makeshift Leg Makeshift Leg Armored Huge Wheel Improved Heat Sink Coolant Injector Coolant Injector Coolant Injector Huge Storage Unit Compact Matter Pod Gatling Laser Subdweller Shrapnel Launcher Mining Laser Chainsword [Rating: 47] Favorites ----------- Power Subdweller Power Source Engine Subdweller Power Source Power Core Improved Fusion Compressor Propulsion Improved Carbon-fiber Leg Treads Light Treads Leg Improved Carbon-fiber Leg Wheel Armored Huge Wheel Utility Large Storage Unit Device Seismic Detector Storage Large Storage Unit Processor Advanced Visual Processing Unit Weapon Light Assault Rifle Energy Gun Gatling Laser Energy Cannon Plasma Cannon Ballistic Gun Light Assault Rifle Launcher Subdweller Shrapnel Launcher Slashing Weapon Chainsword Build | -11 -10 -10 -8 -7 -7 -7 ------- Run | Yrd Mat Sub Mat Fac Was Fac Slots Evolved 6 | . . . 4 2 . . Power 1 | . . . . 1 . . Propulsion 1 | . . . 1 . . . Utility 3 | . . . 3 . . . Weapon 1 | . . . . 1 . . Parts Attached 41 | 8 1 9 12 2 2 7 Power 6 | 2 . 2 1 . 1 . Engine 5 | 2 . 2 1 . . . Core 1 | . . . . . 1 . Reactor . | . . . . . . . Propulsion 11 | 2 . 3 4 . 1 1 Treads 3 | 2 . 1 . . . . Leg 6 | . . 2 3 . 1 . Wheel 2 | . . . 1 . . 1 Hover . | . . . . . . . Flight . | . . . . . . . Utility 10 | 2 1 1 3 1 . 2 Device 5 | 1 . 1 2 . . 1 Storage 2 | 1 1 . . . . . Processor 3 | . . . 1 1 . 1 Hackware . | . . . . . . . Protection . | . . . . . . . Artifact . | . . . . . . . Weapon 14 | 2 . 3 4 1 . 4 Energy Gun 4 | . . . 2 1 . 1 Energy Cannon 2 | . . . . . . 2 Ballistic Gun 4 | 2 . 1 1 . . . Ballistic Cannon . | . . . . . . . Launcher 3 | . . 2 . . . 1 Special Weapon . | . . . . . . . Impact Weapon . | . . . . . . . Slashing Weapon 1 | . . . 1 . . . Piercing Weapon . | . . . . . . . Special Melee Weapon . | . . . . . . . Unidentified Prototypes 1 | . . . . . . 1 Parts Lost 8 | . . 2 1 . 5 . Power 2 | . . . 1 . 1 . Propulsion 1 | . . . . . 1 . Utility 1 | . . . . . 1 . Weapon 4 | . . 2 . . 2 . Highest Loss Streak 5 | . . 1 1 . 5 . To Critical Strikes . | . . . . . . . Average Backups 8 | 3 6 8 11 13 10 7 Power . | . 1 1 1 . . . Propulsion 1 | . 1 . 2 4 3 2 Utility 2 | . 2 2 2 5 4 2 Weapon 3 | 1 2 3 5 4 2 1 Tool/Special . | . . . . . . . Unused Backups 22 | . . 1 5 1 6 9 Power . | . . . . . . . Propulsion 1 | . . 1 . . . . Utility 9 | . . . 1 1 4 3 Weapon 10 | . . . 4 . 2 4 Tool/Special 2 | . . . . . . 2 Average Slot Usage (%) 83 | . 100 96 91 89 73 58 Engine 7 | . 14 13 7 7 4 . Treads 11 | . 28 27 . . . . Leg 8 | . . . 23 23 16 7 Device 12 | . 14 14 26 17 8 2 Storage 9 | . 14 11 9 7 7 7 Processor 7 | . . . 6 12 15 17 Energy Gun 3 | . . . 8 18 13 . Energy Cannon 3 | . . . . . . 12 Ballistic Gun 10 | . 28 19 7 . . . Launcher 3 | . . 8 . . . . Slashing Weapon 2 | . . . 1 1 2 7 Peak Build Rating 47 | 7 7 17 35 40 47 42 Average Rating 21 | 5 7 10 29 38 33 31 On Entrance 17 | . 7 7 17 35 40 18 Avg Prop Armor Cover (%) 8 | . . . . . . 8 Naked Turns . | . . . . . . . Heaviest Build 44 | 14 29 35 43 37 44 38 Greatest Support 58 | 40 40 40 58 54 54 28 Greatest Overweight (x) 7 | . . 1 1 . 7 2 Average Overweight (x) . | . . . . . . 1 Largest Inventory Capacity 15 | 8 15 15 15 15 15 15 Average Capacity 13 | 7 13 13 15 15 14 15 Most Carried 15 | 6 7 12 15 15 15 13 Average Carried 9 | 3 6 8 12 14 10 8 Final Capacity 15 | 8 15 15 15 15 15 15 Final Carried 15 | 6 7 12 15 15 5 13 Class Distribution -------------------- 77% | Mutant 8% | Assassin 7% | Scavenger-Mutant 6% | Skirmisher Dominant Class ---------------- Mutant | -10/Materials Mutant | -10/Subcaves Mutant | -8/Materials Skirmisher | -7/Factory Skirmisher | -7/Waste Mutant | -7/Factory Resources | -11 -10 -10 -8 -7 -7 -7 ----------- Run | Yrd Mat Sub Mat Fac Was Fac Matter Collected 1131 | 296 . 515 266 54 . . Remotely . | . . . . . . . Salvage Created 724 | 136 . 251 283 54 . . Parts 44 | 8 . 9 23 4 . . Haulers Intercepted 2 | . . . 2 . . . Recyclers Shooed . | . . . . . . . Parts Field Recycled . | . . . . . . . Retrieved Matter . | . . . . . . . Parts Self-Destructed 16 | . . 16 . . . . Prevented . | . . . . . . . Parts Restored . | . . . . . . . Kills | -11 -10 -10 -8 -7 -7 -7 ------- Run | Yrd Mat Sub Mat Fac Was Fac Combat Hostiles Destroyed 13 | . . 5 7 1 . . Guns 12 | . . 4 7 1 . . AOE 1 | . . 1 . . . . Classes Destroyed 11 | 3 . 3 5 . . . Worker 2 | 1 . . 1 . . . Builder 2 | . . . 2 . . . Tunneler 2 | 2 . . . . . . Hauler 2 | . . . 2 . . . Recycler 1 | 1 . . . . . . Operator 1 | . . . 1 . . . Swarmer 6 | . . . 6 . . . Sentry 2 | . . . 1 1 . . Cobbler 1 | . . 1 . . . . Subdweller 5 | . . 5 . . . . Scientist 1 | . . 1 . . . . Best Kill Streak 4 | 3 . 2 4 1 . . Combat Bots Only 3 | . . 2 3 1 . . Max Kills in Single Turn 2 | 1 . 2 2 1 . . Gunslinging 1 | . . . 1 . . . Exploded 1 | . . 1 . . . . Melee . | . . . . . . . Uniques/NPCs Destroyed . | . . . . . . . Combat | -11 -10 -10 -8 -7 -7 -7 -------- Run | Yrd Mat Sub Mat Fac Was Fac Hostile Shots Fired 111 | . . 58 24 18 4 7 Missed 40 | . . 18 11 8 . 3 Hits 71 | . . 40 13 10 4 4 Melee 4 | . . . . . 4 . Projectile 67 | . . 40 13 10 . 4 AOE 2 | . . 2 . . . . Critical Strikes 5 | . . 1 . . 4 . Damage Taken 1534 | . . 1068 168 76 159 63 Core 300 | . . 191 39 . 40 30 Absorbed by Shields . | . . . . . . . Core Remaining (%) 71 | 100 . 23 92 . . . Volleys Fired 63 | 9 . 29 20 2 1 2 Largest 3 | 2 . 2 2 3 3 2 Hottest 240 | 40 . 60 160 240 240 160 Shots Fired 123 | 18 . 53 40 6 3 3 Gun 116 | 18 . 49 40 6 3 . Cannon 2 | . . . . . . 2 Launcher 5 | . . 4 . . . 1 Special . | . . . . . . . Kinetic 87 | 18 . 53 16 . . . Thermal 35 | . . . 24 6 3 2 Explosive 1 | . . . . . . 1 Electromagnetic . | . . . . . . . Robot Hit Streak 15 | 5 . 15 11 6 . 7 Robot Miss Streak 3 | 3 . 2 3 1 . . Penetration Max . | . . . . . . . Secondary Targets 1 | . . . 1 . . . Max Gunslinging Chain 1 | . . . 1 . . . Shots Hit Robots 99 | 11 . 44 40 3 . 1 Core Hits 47 | 6 . 15 19 5 . 2 Critical Kills 1 | . . 1 . . . . Critical Parts Destroyed 1 | . . . 1 . . . Critical Strikes 2 | . . 1 1 . . . Destroy 2 | . . 1 1 . . . Melee Attacks 27 | . . . 10 2 8 7 Impact . | . . . . . . . Slashing 27 | . . . 10 2 8 7 Piercing . | . . . . . . . Sneak Attacks 2 | . . . 2 . . . Combat Hostiles . | . . . . . . . Follow-up Attacks . | . . . . . . . Damage Inflicted 2057 | 98 . 822 851 89 . 197 Guns 1228 | 98 . 465 576 89 . . Cannons . | . . . . . . . Explosions 554 | . . 357 . . . 197 Melee 275 | . . . 275 . . . Ramming . | . . . . . . . Kinetic 1131 | 98 . 822 211 . . . Thermal 454 | . . . 365 89 . . Explosive 197 | . . . . . . 197 Electromagnetic . | . . . . . . . Impact . | . . . . . . . Slashing 275 | . . . 275 . . . Piercing . | . . . . . . . Highest Corruption 27 | . . . . . 25 27 Average Corruption 22 | . . . . . 12 25 Corruption Purged . | . . . . . . . Corruption Blocked . | . . . . . . . Effects 48 | . . . . . 8 40 Message Errors 12 | . . . . . 4 8 Matter Fused 16 | . . . . . 1 15 Heat Flow Errors 5 | . . . . . . 5 Energy Discharges 4 | . . . . . 1 3 Parts Rejected 1 | . . . . . . 1 Data Loss (minor) 6 | . . . . . 2 4 Data Loss (major) 2 | . . . . . . 2 Alerts 2 | . . . . . . 2 Overload Shots . | . . . . . . . Overflow Damage 58 | . . 6 52 . . . Projectiles . | . . . . . . . Explosions 6 | . . 6 . . . . Melee 52 | . . . 52 . . . Knockbacks . | . . . . . . . Impact . | . . . . . . . Kinetic . | . . . . . . . Secondary . | . . . . . . . Self-Inflicted Damage 127 | . . 127 . . . . Shots 4 | . . 4 . . . . Rammed . | . . . . . . . Targets Rammed . | . . . . . . . Kicked . | . . . . . . . Crushed . | . . . . . . . Highest Temperature 289 | . . . 217 289 153 233 Average Temperature 93 | . . . 82 151 80 91 Received Heat Transfer 162 | . . 63 45 18 . 36 Siege Activations . | . . . . . . . Martial Activations . | . . . . . . . Shielding Activations . | . . . . . . . Robots Disrupted . | . . . . . . . Combat Hostiles . | . . . . . . . Robots Corrupted . | . . . . . . . Combat Hostiles . | . . . . . . . Parts Fried . | . . . . . . . Impact Corruptions . | . . . . . . . Robots Melted . | . . . . . . . Combat Hostiles . | . . . . . . . Parts Melted 1 | . . 1 . . . . Heat Transferred 1025 | . . . 825 200 . . Parts Sabotaged . | . . . . . . . Parts Stolen . | . . . . . . . Parts Stripped . | . . . . . . . Power Chain Reactions . | . . . . . . . Alert | -11 -10 -10 -8 -7 -7 -7 ------- Run | Yrd Mat Sub Mat Fac Was Fac Maximum Alert Level . | . . . . . . . Low Security (%) 100 | 100 100 . 100 100 100 100 Level 1 . | . . . . . . . Level 2 . | . . . . . . . Level 3 . | . . . . . . . Level 4 . | . . . . . . . Level 5 . | . . . . . . . High Security . | . . . . . . . Max Security . | . . . . . . . Peak Influence 114 | 10 . . 114 30 7 16 Initial 21 | . . . . 21 7 . Average 12 | 1 . . 41 16 . . Influence Increases 316 | 20 . . 209 32 2 53 Destroy 0b10 Robot/C 160 | . . . 140 20 . . Destroy 0b10 Robot/NC 50 | 20 . . 30 . . . Destroy Leader 44 | . . . 34 10 . . Successful Hack 21 | . . . . . . 21 Disable Machine 15 | . . . . . . 15 Destroy Structure 26 | . . . 5 2 2 17 Influence Decreases 303 | 20 . . 160 61 22 40 Entered New Map 41 | . . . . 28 13 . Time Decay 261 | 20 . . 160 33 8 40 Lost Part 1 | . . . . . 1 . Squads Dispatched 2 | . . . . . . 2 Investigation 1 | . . . . . . 1 Extermination 1 | . . . . . . 1 Reinforcement . | . . . . . . . Assault . | . . . . . . . Garrison . | . . . . . . . Intercept . | . . . . . . . Searches Triggered . | . . . . . . . Construction Impeded . | . . . . . . . Haulers Reinforced . | . . . . . . . Active Scanning Responses . | . . . . . . . Cargo Convoy Interrupts . | . . . . . . . Stealth | -11 -10 -10 -8 -7 -7 -7 --------- Run | Yrd Mat Sub Mat Fac Was Fac Distress Signals 1 | . . . 1 . . . Communications Jammed . | . . . . . . . Distress Signals . | . . . . . . . Times Spotted 31 | . . 7 12 1 5 6 Peak Tracking Total 5 | . . 2 4 1 5 4 Tactical Retreats . | . . . . . . . Traps | -11 -10 -10 -8 -7 -7 -7 ------- Run | Yrd Mat Sub Mat Fac Was Fac Traps Triggered 3 | . . . . 1 . 2 Indirectly . | . . . . . . . Trap Hack Attempts . | . . . . . . . Triggered . | . . . . . . . Disarmed . | . . . . . . . Reprogrammed . | . . . . . . . Reused . | . . . . . . . Traps Extracted . | . . . . . . . Installed . | . . . . . . . Triggered . | . . . . . . . Machines | -11 -10 -10 -8 -7 -7 -7 ---------- Run | Yrd Mat Sub Mat Fac Was Fac Machines Disabled 1 | . . . . . . 1 Max in Single Turn 1 | . . . . . . 1 Machines Repaired . | . . . . . . . Machines Dismantled . | . . . . . . . Machines Sabotaged . | . . . . . . . Overloaded Fab Kills . | . . . . . . . Hacking | -11 -10 -10 -8 -7 -7 -7 --------- Run | Yrd Mat Sub Mat Fac Was Fac Machines Accessed 4 | . . . 1 . . 3 Terminals 4 | . . . 1 . . 3 Fabricators . | . . . . . . . Repair Stations . | . . . . . . . Recycling Units . | . . . . . . . Scanalyzers . | . . . . . . . Garrison Access . | . . . . . . . Total Hacks 7 | . . . 2 . . 5 Successful 2 | . . . . . . 2 Failed 5 | . . . 2 . . 3 Catastrophic 1 | . . . . . . 1 Database Lockouts . | . . . . . . . Manual 2 | . . . 2 . . . Terminals 7 | . . . 2 . . 5 Fabricators . | . . . . . . . Repair Stations . | . . . . . . . Recycling Units . | . . . . . . . Scanalyzers . | . . . . . . . Garrison Access . | . . . . . . . Terminal Hacks 2 | . . . . . . 2 Open DSF 1 | . . . . . . 1 Terminal Index 1 | . . . . . . 1 Fabricator Hacks . | . . . . . . . Repair Station Hacks . | . . . . . . . Recycling Unit Hacks . | . . . . . . . Scanalyzer . | . . . . . . . Garrison Access Hacks . | . . . . . . . Unauthorized Hacks . | . . . . . . . Terminals . | . . . . . . . Fabricators . | . . . . . . . Repair Stations . | . . . . . . . Recycling Units . | . . . . . . . Scanalyzers . | . . . . . . . Garrison Access . | . . . . . . . Data Cores Recovered 1 | . . . 1 . . . Used 1 | . . . 1 . . . Hacking Detections 4 | . . . 1 . . 3 Full Trace Events 1 | . . . . . . 1 Feedback Events . | . . . . . . . Feedback Blocked . | . . . . . . . Robot Schematics Acquired . | . . . . . . . Robots Built . | . . . . . . . Authchips . | . . . . . . . Time . | . . . . . . . Total Robot Build Rating . | . . . . . . . Part Schematics Acquired . | . . . . . . . Parts Built . | . . . . . . . Authchips . | . . . . . . . Time . | . . . . . . . Total Part Build Rating . | . . . . . . . Part Studies Acquired . | . . . . . . . Parts Repaired . | . . . . . . . Time . | . . . . . . . Parts Recycled . | . . . . . . . Recycled Matter . | . . . . . . . Retrieved Matter . | . . . . . . . Retrieved Components . | . . . . . . . Parts Scanalyzed . | . . . . . . . Part Schematics Acquired . | . . . . . . . Parts Damaged . | . . . . . . . Bothacking | -11 -10 -10 -8 -7 -7 -7 ------------ Run | Yrd Mat Sub Mat Fac Was Fac Used RIF Installer . | . . . . . . . Robots Hacked . | . . . . . . . Non-combat . | . . . . . . . Combat . | . . . . . . . Robot Hacks Applied . | . . . . . . . Relay Couplers Released . | . . . . . . . Fabnet Peak Effective % . | . . . . . . . Robots Rewired . | . . . . . . . Allies Hacked . | . . . . . . . Hacks Repelled . | . . . . . . . Allies | -11 -10 -10 -8 -7 -7 -7 -------- Run | Yrd Mat Sub Mat Fac Was Fac Total Allies . | . . . . . . . Largest Group . | . . . . . . . Highest-Rated Group . | . . . . . . . Highest-Rated Ally . | . . . . . . . Total Orders . | . . . . . . . Ally Attacks . | . . . . . . . Total Damage . | . . . . . . . Kills . | . . . . . . . Allies Corrupted . | . . . . . . . Allies Melted . | . . . . . . . Intel | -11 -10 -10 -8 -7 -7 -7 ------- Run | Yrd Mat Sub Mat Fac Was Fac Active Infowar (turns) 2575 | 58 80 904 484 94 216 739 Optics 1425 | . . . 376 94 216 739 Sensors 179 | . . . . . . 179 Terrain 506 | . . . 476 30 . . Structural 649 | . . . 433 94 122 . Seismic 1738 | 58 80 904 477 94 125 . Robot Analysis Total . | . . . . . . . Derelict Logs Recovered . | . . . . . . . Drone Launches . | . . . . . . . Drone Recoveries . | . . . . . . . Exploration | -11 -10 -10 -8 -7 -7 -7 ------------- Run | Yrd Mat Sub Mat Fac Was Fac Turns Passed 2886 | 157 80 1116 484 94 216 739 Spaces Moved 1397 | 72 47 495 225 59 104 395 Core 4 | 3 . . . . 1 . Treads 593 | 69 47 477 . . . . Legs 576 | . . 18 225 59 103 171 Wheels 224 | . . . . . . 224 Hover . | . . . . . . . Flight . | . . . . . . . Fastest Speed 50 | 50 160 140 120 120 120 115 Average Speed 154 | 155 160 159 133 120 146 167 Slowest Speed 400 | 160 160 210 210 120 400 260 Overloaded Moves . | . . . . . . . Propulsion Burnouts . | . . . . . . . Robots Hopped . | . . . . . . . Potential Cave-ins 6 | . . . . . 6 . Cave-ins Triggered . | . . . . . . . Exploration Rate (%) 26 | 4 8 40 29 4 88 14 Regions Visited 6 Branch Regions 1 Pre-discovered Areas . | . . . . . . . Known Exits Taken . | . . . . . . . Unknown Exits Taken 4 | 1 1 1 1 . . . Scrap Searched 1 | . . 1 . . . . Spaces Dug 19 | . . . 5 2 8 4 Terrain Destroyed 77 | . . 46 5 2 8 16 Melee 19 | . . . 5 2 8 4 Projectile . | . . . . . . . AOE 58 | . . 46 . . . 12 Terrain Rammed . | . . . . . . . Walls Destroyed . | . . . . . . . Machines Disabled . | . . . . . . . Actions | -11 -10 -10 -8 -7 -7 -7 --------- Run | Yrd Mat Sub Mat Fac Was Fac Total 1960 | 97 51 777 355 75 150 455 Wait 348 | 4 4 222 52 5 32 29 Move 1392 | 71 46 494 224 59 103 395 Hop . | . . . . . . . Pick Up 40 | 5 . 10 15 2 . 8 Fast Attach 32 | 7 . 6 7 1 4 7 Attach 9 | . . 1 6 1 1 . Detach 1 | . . . 1 . . . Swap 13 | 1 1 4 4 1 1 1 Drop 30 | . . 11 16 2 . 1 Fire 63 | 9 . 29 20 2 1 2 Melee 27 | . . . 10 2 8 7 Ram . | . . . . . . . Kick . | . . . . . . . Crush . | . . . . . . . Escape Stasis 5 | . . . . . . 5 Rewire . | . . . . . . . Trap . | . . . . . . . Miscellaneous . | . . . . . . . Route ------- -11/Scrapyard -10/Materials -10/Subcaves -8/Materials -7/Factory -7/Waste -7/Factory History --------- Turn | Location | Event 19 | -11/Scrapyard | Discovered new exit (range 16) 158 | -11/Scrapyard | Entered Materials 159 | -10/Materials | Met a group of wandering Federalists 219 | -10/Materials | Discovered new exit (range 9) 238 | -10/Materials | Entered Subcaves 238 | -10/Subcaves | Accompanied by 3 allies 239 | -10/Subcaves | Continued accompanying wandering Federalists (5) 239 | -10/Subcaves | Approached by a straggling Scientist 313 | -10/Subcaves | Build established: Mutant 326 | -10/Subcaves | Lost 3 allies 1120 | -10/Subcaves | Core integrity fell below 50% 1202 | -10/Subcaves | Shifting Twisted Machinery released Sub. Monowheel 1316 | -10/Subcaves | Discovered new exit (range 5) 1354 | -10/Subcaves | Entered Materials 1354 | -8/Materials | Evolved 4 slots: Propulsion x1, Utility x3 1764 | -8/Materials | Discovered new exit (range 19) 1838 | -8/Materials | Entered Factory 1838 | -7/Factory | Evolved 2 slots: Power x1, Weapon x1 1885 | -7/Factory | Discovered new exit (range 17) 1932 | -7/Factory | Sucked down chute 1932 | -7/Factory | Entered Waste 1935 | -7/Waste | Spotted C-40 Crusher 1947 | -7/Waste | EMP discharged 1990 | -7/Waste | Spotted C-40 Crusher 2042 | -7/Waste | Spotted C-40 Crusher 2043 | -7/Waste | Spotted C-40 Crusher 2047 | -7/Waste | EMP discharged 2047 | -7/Waste | System corruption reached 10% 2052 | -7/Waste | Crushed by Compactor (1 part destroyed, 2 dropped) 2054 | -7/Waste | Spotted C-40 Crusher 2054 | -7/Waste | Crushed by Compactor (1 part destroyed, 2 dropped) 2057 | -7/Waste | Crushed by Compactor (1 part destroyed, 1 dropped) 2060 | -7/Waste | Crushed by Compactor (1 part destroyed, 2 dropped) 2091 | -7/Waste | Lost 5 parts (1p1n1u2w) 2103 | -7/Waste | Spotted C-40 Crusher 2131 | -7/Waste | Discovered new exit (range 10) 2147 | -7/Waste | EMP discharged 2148 | -7/Waste | Entered Factory 2623 | -7/Factory | Identified exit to DSF 2887 | -7/Factory | Self-destructed Last Messages --------------- 02686_ System corrupted: Matter fused (-7). 02714_ System corrupted: Heat flow error (+117). 02727_ K-01 Serf cleans the DSF Access. 02730_ System corrupted: Matter fused (-10). 02731_ K-01 Serf cleans the Fusion Modulator. 02746_ VSDTV#8 VL4TD1M:YO14CX5VF